fUSD/lending_fUSD_20240116
["ID","MTS","AMOUNT","RATE_DAILY","PERIOD"]
[311743713,1705373438137,-169.31733007,0.00022163,2]
[311743715,1705373438150,-4183.61181516,0.00022163,2]
[311743718,1705373438173,-49.72818484,0.00022163,2]
[311743720,1705373438183,-1000.0,0.00022163,2]
[311743722,1705373438194,-1000.0,0.00022163,2]
[311743724,1705373438205,-617.42663868,0.00022164,2]
[311743726,1705373438217,-114.24336132,0.00022164,2]
[311743727,1705373438228,-167.30663868,0.00022164,2]
[311743728,1705373438242,-508.19336132,0.00022164,2]
[311743729,1705373438252,-190.78668434,0.00022164,2]
[311743730,1705373438265,-425.06331566,0.00022164,2]
[311743731,1705373438275,-500.0,0.00022164,2]
[311743732,1705373438286,-970.49,0.00022164,2]
[311743733,1705373438296,-500.0,0.00022164,2]
[311743734,1705373438306,-178.9903064,0.00022164,2]
[311743735,1705373438318,-616.01249581,0.00022164,2]
[311743736,1705373438330,-30.81719779,0.00022164,2]
[311743737,1705373438340,-340.10380891,0.00022164,2]
[311743738,1705373438373,-429.56619109,0.00022164,2]
[311743739,1705373438382,-0.17261809,0.00022164,2]
[311743740,1705373438422,-499.82738191,0.00022164,2]
[311743741,1705373438433,-500.0,0.00022164,2]
[311743742,1705373438443,-524.75,0.00022164,2]
[311743743,1705373438453,-674.37,0.00022164,2]
[311743744,1705373438463,-502.8,0.00022164,2]
[311743745,1705373438472,-617.22,0.00022164,2]
[311743746,1705373438482,-500.0,0.00022164,2]
[311743747,1705373438492,-878.47,0.00022164,2]
[311743748,1705373438501,-514.51,0.00022164,2]
[311743749,1705373438511,-581.53,0.00022164,2]
[311743750,1705373438523,-500.0,0.00022164,2]
[311743751,1705373438533,-551.31,0.00022164,2]
[311743752,1705373438543,-500.0,0.00022164,2]
[311743753,1705373438553,-608.58,0.00022164,2]
[311743754,1705373438563,-500.0,0.00022164,2]
[311743755,1705373438572,-1134.41,0.00022164,2]
[311743756,1705373438582,-500.0,0.00022164,2]
[311743757,1705373438592,-734.83,0.00022164,2]
[311743758,1705373438602,-561.97,0.00022164,2]
[311743759,1705373438612,-697.45,0.00022164,2]
[311743760,1705373438623,-500.0,0.00022164,2]
[311743761,1705373438632,-519.75259793,0.00022164,2]
[311743762,1705373438642,-567.16,0.00022164,2]
[311743763,1705373438652,-609.78,0.00022164,2]
[311743764,1705373438664,-500.0,0.00022164,2]
[311743765,1705373438673,-500.0,0.00022164,2]
[311743766,1705373438684,-527.72,0.00022164,2]
[311743767,1705373438696,-287.78854226,0.00022164,2]
[311743768,1705373438706,-651.28,0.00022164,2]
[311743769,1705373438715,-500.0,0.00022164,2]
[311743770,1705373438725,-500.0,0.00022164,2]
[311743771,1705373438737,-500.0,0.00022164,2]
[311743772,1705373438747,-602.72,0.00022164,2]
[311743773,1705373438757,-500.0,0.00022164,2]
[311743774,1705373438768,-500.0,0.00022164,2]
[311743775,1705373438778,-500.0,0.00022164,2]
[311743776,1705373438788,-500.0,0.00022164,2]
[311743777,1705373438797,-500.0,0.00022164,2]
[311743778,1705373438806,-500.0,0.00022164,2]
[311743779,1705373438816,-589.48,0.00022164,2]
[311743780,1705373438826,-220.4033193,0.00022164,2]
[311743781,1705373438835,-500.0,0.00022164,2]
[311743782,1705373438845,-500.0,0.00022164,2]
[311743783,1705373438854,-500.0,0.00022164,2]
[311743784,1705373438865,-500.0,0.00022164,2]
[311743785,1705373438875,-500.0,0.00022164,2]
[311743786,1705373438884,-609.16,0.00022164,2]
[311743787,1705373438893,-551.01,0.00022164,2]
[311743788,1705373438903,-500.0,0.00022164,2]
[311743789,1705373438913,-500.0,0.00022164,2]
[311743790,1705373438923,-135.79256998,0.00022164,2]
[311743791,1705373439858,-364.20743002,0.00022164,2]
[311743792,1705373439867,-500.0,0.00022164,2]
[311743793,1705373439878,-258.36292132,0.00022164,2]
[311743794,1705373439887,-655.89,0.00022164,2]
[311743795,1705373439896,-61.55143421,0.00022164,2]
[311743850,1705373440695,250.0,0.00022065,2]
[311743851,1705373440774,-189.59768572,0.00022163,2]
[311743852,1705373440784,-551.41149079,0.00022164,2]
[311743853,1705373440794,-500.0,0.00022164,2]
[311743854,1705373440803,-500.0,0.00022164,2]
[311743855,1705373440812,-500.0,0.00022164,2]
[311743856,1705373440821,-1890.14,0.00022164,2]
[311743857,1705373440830,-533.53815961,0.00022164,2]
[311743858,1705373440839,-500.0,0.00022164,2]
[311743859,1705373440848,-561.21,0.00022164,2]
[311743860,1705373440858,-500.0,0.00022164,2]
[311743861,1705373440867,-532.52,0.00022164,2]
[311743862,1705373440877,-500.0,0.00022164,2]
[311743863,1705373440887,-549.88672746,0.00022164,2]
[311743864,1705373440896,-2897.84,0.00022164,2]
[311743865,1705373440905,-618.36,0.00022164,2]
[311743866,1705373440915,-500.0,0.00022164,2]
[311743867,1705373440924,-500.0,0.00022164,2]
[311743868,1705373440933,-945.43,0.00022164,2]
[311743869,1705373440942,-792.24,0.00022164,2]
[311743870,1705373440951,-500.0,0.00022164,2]
[311743871,1705373440960,-500.0,0.00022164,2]
[311743872,1705373440969,-502.69,0.00022164,2]
[311743873,1705373440979,-500.0,0.00022164,2]
[311743874,1705373440990,-666.69,0.00022164,2]
[311743875,1705373441000,-503.29,0.00022164,2]
[311743876,1705373441011,-500.0,0.00022164,2]
[311743877,1705373441021,-663.47,0.00022164,2]
[311743878,1705373441031,-652.39,0.00022164,2]
[311743879,1705373441040,-631.73,0.00022164,2]
[311743880,1705373441051,-1480.46,0.00022164,2]
[311743881,1705373441060,-1979.28,0.00022164,2]
[311743882,1705373441069,-714.7,0.00022164,2]
[311743883,1705373441080,-500.0,0.00022164,2]
[311743884,1705373441090,-592.69,0.00022164,2]
[311743885,1705373441100,-818.24,0.00022164,2]
[311743886,1705373441110,-500.0,0.00022164,2]
[311743887,1705373441119,-1479.13,0.00022164,2]
[311743888,1705373441128,-600.01,0.00022164,2]
[311743889,1705373441137,-500.0,0.00022164,5]
[311743890,1705373441148,-515.34,0.00022164,2]
[311743891,1705373441158,-500.0,0.00022164,2]
[311743892,1705373441169,-769.66,0.00022164,2]
[311743893,1705373441179,-500.0,0.00022164,2]
[311743894,1705373441190,-500.0,0.00022164,2]
[311743895,1705373441199,-556.66,0.00022164,2]
[311743896,1705373441210,-540.52,0.00022164,2]
[311743897,1705373441221,-500.0,0.00022164,2]
[311743898,1705373441231,-1014.16,0.00022164,2]
[311743899,1705373441241,-599.43,0.00022164,2]
[311743900,1705373441252,-631.94,0.00022164,2]
[311743901,1705373441262,-650.17,0.00022164,2]
[311743902,1705373441271,-1205.18,0.00022164,2]
[311743903,1705373441281,-7169.0,0.00022164,2]
[311743904,1705373441290,-658.04,0.00022164,2]
[311743905,1705373441299,-500.0,0.00022164,2]
[311743906,1705373441309,-544.55,0.00022164,2]
[311743907,1705373441318,-500.0,0.00022164,2]
[311743908,1705373441328,-500.0,0.00022164,2]
[311743909,1705373441337,-500.0,0.00022164,2]
[311743910,1705373441347,-504.12,0.00022164,2]
[311743911,1705373441356,-1127.57,0.00022164,2]
[311743912,1705373441365,-4960.01,0.00022164,2]
[311743913,1705373441374,-500.0,0.00022164,2]
[311743914,1705373441385,-500.0,0.00022164,2]
[311743915,1705373441394,-4208.58,0.00022164,2]
[311743916,1705373441404,-563.76,0.00022164,2]
[311743917,1705373441415,-617.08,0.00022164,2]
[311743918,1705373441424,-2825.25,0.00022164,2]
[311743919,1705373441434,-500.0,0.00022164,2]
[311743920,1705373441443,-1680.94,0.00022164,2]
[311743921,1705373441453,-500.0,0.00022164,2]
[311743922,1705373441463,-500.0,0.00022164,2]
[311743923,1705373441472,-1923.64,0.00022164,2]
[311743924,1705373441482,-500.0,0.00022164,2]
[311743925,1705373441493,-500.0,0.00022164,2]
[311743926,1705373441503,-3961.88,0.00022164,2]
[311743927,1705373441512,-500.0,0.00022164,2]
[311743928,1705373441522,-1381.91,0.00022164,2]
[311743929,1705373441531,-532.89,0.00022164,2]
[311743930,1705373441541,-1536.69,0.00022164,2]
[311743931,1705373441551,-500.0,0.00022164,2]
[311743932,1705373441560,-670.42,0.00022164,2]
[311743933,1705373441570,-536.91,0.00022164,2]
[311743934,1705373441580,-500.0,0.00022164,2]
[311743935,1705373441589,-500.0,0.00022164,2]
[311743936,1705373441599,-500.0,0.00022164,2]
[311743937,1705373441610,-606.14,0.00022164,2]
[311743938,1705373441620,-500.0,0.00022164,2]
[311743939,1705373441630,-500.0,0.00022164,2]
[311743940,1705373441640,-1909.66,0.00022164,2]
[311743941,1705373441650,-2350.19,0.00022164,2]
[311743942,1705373441661,-500.0,0.00022164,2]
[311743943,1705373441670,-500.0,0.00022164,2]
[311743944,1705373441680,-20205.89,0.00022164,2]
[311743945,1705373441690,-2633.32,0.00022164,2]
[311743946,1705373441701,-500.0,0.00022164,2]
[311743947,1705373441712,-500.0,0.00022164,2]
[311743948,1705373441722,-805.9,0.00022164,2]
[311743949,1705373441732,-500.0,0.00022164,2]
[311743950,1705373441742,-500.0,0.00022164,2]
[311743951,1705373441752,-1621.29,0.00022164,2]
[311743952,1705373441762,-1737.24,0.00022164,2]
[311743953,1705373441771,-500.0,0.00022164,2]
[311743954,1705373441780,-613.97,0.00022164,2]
[311743955,1705373441790,-500.0,0.00022164,2]
[311743956,1705373441800,-500.0,0.00022164,2]
[311743957,1705373441810,-6603.12,0.00022164,2]
[311743958,1705373441821,-451.94872633,0.00022164,2]
[311743959,1705373441887,-667.54127367,0.00022164,2]
[311743960,1705373441897,-1502.41,0.00022164,2]
[311743961,1705373441907,-535.57,0.00022164,2]
[311743962,1705373441917,-128.14523122,0.00022164,2]
[311743964,1705373443048,-371.85476878,0.00022164,2]
[311743965,1705373443058,-217.88,0.00022164,2]
[311743966,1705373443067,-76.67523122,0.00022164,2]
[311743967,1705373443078,-423.32476878,0.00022164,2]
[311743968,1705373443088,-500.0,0.00022164,2]
[311743969,1705373443097,-500.0,0.00022164,2]
[311743970,1705373443106,-500.0,0.00022164,2]
[311743971,1705373443115,-248.93294158,0.00022164,2]
[311743973,1705373443127,-778.64705842,0.00022164,2]
[311743974,1705373443136,-4009.39,0.00022164,2]
[311743975,1705373443145,-500.0,0.00022164,2]
[311743976,1705373443155,-500.0,0.00022164,2]
[311743977,1705373443164,-500.0,0.00022164,2]
[311743978,1705373443174,-500.0,0.00022164,2]
[311743979,1705373443183,-1220.71,0.00022164,2]
[311743980,1705373443192,-6531.36,0.00022164,2]
[311743981,1705373443202,-516.64,0.00022164,2]
[311743982,1705373443212,-875.4,0.00022164,2]
[311743983,1705373443222,-500.0,0.00022164,2]
[311743984,1705373443231,-3908.81,0.00022164,2]
[311743985,1705373443241,-591.52,0.00022164,2]
[311743986,1705373443251,-1121.68,0.00022165,2]
[311743987,1705373443261,-506.32,0.00022165,2]
[311743988,1705373443270,-500.0,0.00022165,2]
[311743989,1705373443280,-500.0,0.00022165,2]
[311743990,1705373443289,-500.0,0.00022165,2]
[311743991,1705373443298,-595.99,0.00022165,2]
[311743992,1705373443307,-298.82561578,0.00022165,2]
[311743993,1705373443316,-500.0,0.00022165,2]
[311743994,1705373443326,-500.0,0.00022165,2]
[311743995,1705373443335,-506.84451102,0.00022165,2]
[311743996,1705373443345,-500.0,0.00022165,2]
[311743997,1705373443353,-500.0,0.00022165,2]
[311743998,1705373443363,-500.0,0.00022165,2]
[311743999,1705373443372,-500.0,0.00022165,2]
[311744000,1705373443383,-537.73267665,0.00022165,2]
[311744001,1705373443393,-500.0,0.00022165,2]
[311744002,1705373443402,-500.0,0.00022165,2]
[311744003,1705373443411,-605.16,0.00022165,2]
[311744004,1705373443422,-500.0,0.00022165,2]
[311744005,1705373443431,-500.0,0.00022165,2]
[311744006,1705373443440,-500.0,0.00022165,2]
[311744007,1705373443449,-500.0,0.00022165,2]
[311744008,1705373443458,-500.0,0.00022165,2]
[311744009,1705373443468,-500.0,0.00022165,2]
[311744010,1705373443477,-500.0,0.00022165,2]
[311744011,1705373443486,-500.0,0.00022165,2]
[311744012,1705373443496,-500.0,0.00022165,2]
[311744013,1705373443505,-240.23052301,0.00022165,2]
[311744014,1705373443514,-500.0,0.00022165,2]
[311744015,1705373443523,-586.29,0.00022165,2]
[311744016,1705373443533,-500.0,0.00022165,2]
[311744017,1705373443542,-500.0,0.00022165,2]
[311744018,1705373443551,-500.0,0.00022165,2]
[311744019,1705373443560,-302.87716936,0.00022165,2]
[311744020,1705373443569,-500.0,0.00022165,2]
[311744021,1705373443578,-500.0,0.00022165,2]
[311744022,1705373443587,-500.0,0.00022165,2]
[311744023,1705373443597,-500.0,0.00022165,2]
[311744024,1705373443606,-680.78,0.00022165,2]
[311744025,1705373443614,-500.0,0.00022165,2]
[311744026,1705373443624,-550.65,0.00022165,2]
[311744027,1705373443634,-500.0,0.00022165,2]
[311744028,1705373443642,-500.0,0.00022165,2]
[311744029,1705373443652,-500.0,0.00022165,2]
[311744030,1705373443661,-500.0,0.00022165,2]
[311744031,1705373443670,-500.0,0.00022165,2]
[311744032,1705373443679,-500.0,0.00022165,2]
[311744033,1705373443688,-808.13,0.00022165,2]
[311744034,1705373443698,-500.0,0.00022165,2]
[311744035,1705373443707,-536.34,0.00022165,2]
[311744036,1705373443717,-528.27,0.00022165,2]
[311744037,1705373443726,-500.0,0.00022165,2]
[311744038,1705373443735,-669.55,0.00022165,2]
[311744039,1705373443745,-500.0,0.00022165,2]
[311744040,1705373443754,-500.0,0.00022165,2]
[311744041,1705373443763,-500.0,0.00022165,2]
[311744042,1705373443772,-500.0,0.00022165,2]
[311744043,1705373443781,-799.37,0.00022165,2]
[311744044,1705373443790,-500.46,0.00022165,2]
[311744045,1705373443799,-532.12,0.00022165,2]
[311744046,1705373443808,-548.55,0.00022165,2]
[311744047,1705373443817,-500.0,0.00022165,2]
[311744048,1705373443826,-500.0,0.00022165,2]
[311744049,1705373443835,-500.0,0.00022165,2]
[311744050,1705373443844,-500.0,0.00022165,2]
[311744051,1705373443853,-618.68,0.00022165,2]
[311744052,1705373443862,-500.0,0.00022165,2]
[311744053,1705373443871,-500.0,0.00022165,2]
[311744054,1705373443880,-618.3,0.00022165,2]
[311744055,1705373443889,-500.0,0.00022165,2]
[311744056,1705373443898,-500.0,0.00022165,2]
[311744057,1705373443907,-573.49,0.00022165,2]
[311744058,1705373443916,-543.32945925,0.00022165,2]
[311744059,1705373443925,-500.0,0.00022165,2]
[311744060,1705373443935,-500.0,0.00022165,2]
[311744061,1705373443944,-500.0,0.00022165,2]
[311744062,1705373443953,-507.44,0.00022165,2]
[311744063,1705373443962,-500.0,0.00022165,2]
[311744064,1705373443971,-627.68,0.00022165,2]
[311744065,1705373443980,-469.55536425,0.00022165,2]
[311744066,1705373443990,-500.0,0.00022165,2]
[311744067,1705373443999,-500.0,0.00022165,2]
[311744068,1705373444008,-618.43,0.00022165,2]
[311744069,1705373444018,-1150.21,0.00022165,2]
[311744070,1705373444026,-636.78,0.00022165,2]
[311744071,1705373444037,-500.0,0.00022165,2]
[311744072,1705373444046,-500.0,0.00022165,2]
[311744073,1705373444055,-500.0,0.00022165,2]
[311744074,1705373444065,-500.0,0.00022165,2]
[311744075,1705373444074,-500.0,0.00022165,2]
[311744076,1705373444082,-500.0,0.00022165,2]
[311744077,1705373444092,-500.0,0.00022165,2]
[311744078,1705373444101,-521.04,0.00022165,2]
[311744079,1705373444111,-796.96,0.00022165,2]
[311744080,1705373444120,-500.0,0.00022165,2]
[311744081,1705373444129,-500.0,0.00022165,2]
[311744082,1705373444138,-500.0,0.00022165,2]
[311744083,1705373444149,-500.0,0.00022165,2]
[311744084,1705373444158,-500.0,0.00022165,2]
[311744085,1705373444167,-699.63,0.00022165,2]
[311744086,1705373444176,-752.65,0.00022165,2]
[311744087,1705373444185,-516.18,0.00022165,2]
[311744088,1705373444195,-869.24,0.00022165,2]
[311744089,1705373444204,-662.61,0.00022165,2]
[311744090,1705373444213,-500.0,0.00022165,2]
[311744091,1705373444222,-500.0,0.00022165,2]
[311744092,1705373444231,-500.0,0.00022165,2]
[311744093,1705373444240,-516.98,0.00022165,2]
[311744094,1705373444251,-505.36491187,0.00022165,2]
[311744095,1705373444260,-500.0,0.00022165,2]
[311744096,1705373444269,-500.0,0.00022165,2]
[311744097,1705373444280,-500.0,0.00022165,2]
[311744098,1705373444289,-1452.25,0.00022165,2]
[311744099,1705373444298,-500.0,0.00022165,2]
[311744100,1705373444308,-500.0,0.00022165,2]
[311744101,1705373444318,-668.0,0.00022165,2]
[311744102,1705373444327,-500.0,0.00022165,2]
[311744103,1705373444337,-500.0,0.00022165,2]
[311744104,1705373444346,-500.0,0.00022165,2]
[311744105,1705373444355,-500.0,0.00022165,2]
[311744106,1705373444364,-500.0,0.00022165,2]
[311744107,1705373444374,-500.0,0.00022165,2]
[311744108,1705373444383,-500.0,0.00022165,2]
[311744109,1705373444393,-510.05,0.00022165,2]
[311744110,1705373444402,-500.0,0.00022165,2]
[311744111,1705373444412,-500.0,0.00022165,2]
[311744112,1705373444421,-982.81,0.00022165,2]
[311744113,1705373444431,-500.0,0.00022165,2]
[311744114,1705373444440,-803.37,0.00022165,2]
[311744115,1705373444450,-500.0,0.00022165,2]
[311744116,1705373444459,-500.0,0.00022165,2]
[311744117,1705373444468,-500.0,0.00022165,2]
[311744118,1705373444478,-500.0,0.00022165,2]
[311744119,1705373444487,-500.0,0.00022165,2]
[311744120,1705373444496,-500.0,0.00022165,2]
[311744121,1705373444506,-500.0,0.00022165,2]
[311744122,1705373444515,-843.6,0.00022165,2]
[311744123,1705373444524,-500.0,0.00022165,2]
[311744124,1705373444533,-537.59,0.00022165,2]
[311744125,1705373444542,-500.0,0.00022165,2]
[311744126,1705373444551,-500.0,0.00022165,2]
[311744127,1705373444560,-500.0,0.00022165,2]
[311744128,1705373444570,-500.0,0.00022165,2]
[311744129,1705373444578,-2211.05986846,0.00022165,2]
[311744130,1705373444604,-242.13013154,0.00022165,2]
[311744131,1705373444613,-500.0,0.00022165,2]
[311744132,1705373444622,-551.66153751,0.00022165,2]
[311744133,1705373444656,-8.02846249,0.00022165,2]
[311744134,1705373444665,-691.87,0.00022165,2]
[311744135,1705373444674,-805.98,0.00022165,2]
[311744136,1705373444685,-566.19,0.00022165,2]
[311744137,1705373444695,-775.13489006,0.00022165,2]
[311744138,1705373444732,-4431.39510994,0.00022165,2]
[311744139,1705373444741,-715.83,0.00022165,2]
[311744140,1705373444751,-500.0,0.00022165,2]
[311744141,1705373444760,-500.0,0.00022165,2]
[311744142,1705373444770,-598.04,0.00022165,2]
[311744143,1705373444780,-58.49851934,0.00022165,2]
[311744144,1705373444791,-338.20311739,0.00022165,2]
[311744145,1705373444803,-1954.53931646,0.00022165,2]
[311744146,1705373444815,-340.519297,0.00022165,2]
[311744147,1705373444826,-1150.81980858,0.00022165,2]
[311744148,1705373444838,-633.13267263,0.00022165,2]
[311744149,1705373444850,-3274.4672686,0.00022165,2]
[311744150,1705373444859,-513.96,0.00022165,2]
[311744151,1705373444869,-703.59,0.00022165,2]
[311744152,1705373444878,-362.35362689,0.00022165,2]
[311744153,1705373444887,-95.77510708,0.00022165,2]
[311744154,1705373444898,-404.22489292,0.00022165,2]
[311744155,1705373444908,-500.0,0.00022165,2]
[311744156,1705373444917,-500.0,0.00022165,2]
[311744157,1705373444926,-937.13,0.00022165,2]
[311744158,1705373444935,-567.73,0.00022165,2]
[311744159,1705373444944,-500.0,0.00022165,2]
[311744160,1705373444953,-677.46,0.00022165,2]
[311744161,1705373444962,-500.0,0.00022165,2]
[311744162,1705373444972,-237.5263925,0.00022165,2]
[311744163,1705373444988,-484.14546954,0.00022165,2]
[311744164,1705373445011,-2565.78813796,0.00022165,2]
[311744165,1705373445021,-500.0,0.00022165,2]
[311744166,1705373445030,-423.41455262,0.00022165,2]
[311744167,1705373445039,-500.0,0.00022165,2]
[311744168,1705373445048,-500.0,0.00022165,2]
[311744169,1705373445057,-2160.04924542,0.00022165,2]
[311744170,1705373445731,-1000.0,0.00022164,2]
[311744171,1705373445740,-798.2900237,0.00022165,2]
[311744172,1705373445753,-99.97073088,0.00022165,2]
[311744173,1705373445762,-305.84455277,0.00022165,2]
[311744174,1705373445779,-309.26544723,0.00022165,2]
[311744175,1705373445788,-449.81728263,0.00022165,2]
[311744176,1705373445800,-50.18271737,0.00022165,2]
[311744177,1705373445809,-433.25476874,0.00022165,2]
[311744178,1705373445821,-66.74523126,0.00022165,2]
[311744179,1705373445830,-545.42115149,0.00022165,2]
[311744180,1705373445841,-599.23884851,0.00022165,2]
[311744181,1705373445851,-520.18523522,0.00022165,2]
[311744182,1705373445859,-716.97,0.00022165,2]
[311744183,1705373445868,-500.0,0.00022165,2]
[311744184,1705373445877,-500.0,0.00022165,2]
[311744185,1705373445887,-346.15120174,0.00022165,2]
[311744186,1705373445898,-153.84879826,0.00022165,2]
[311744187,1705373445907,-899.7,0.00022165,2]
[311744188,1705373445916,-500.0,0.00022165,2]
[311744189,1705373445925,-1436.55,0.00022165,2]
[311744190,1705373445934,-537.35,0.00022165,2]
[311744191,1705373445944,-500.0,0.00022165,2]
[311744192,1705373445953,-362.73767416,0.00022165,2]
[311744193,1705373445964,-2024.78232584,0.00022165,2]
[311744194,1705373445973,-500.0,0.00022165,2]
[311744195,1705373445983,-592.35,0.00022165,2]
[311744196,1705373445991,-500.0,0.00022165,2]
[311744197,1705373446001,-3515.79,0.00022165,2]
[311744198,1705373446009,-1008.51,0.00022165,2]
[311744199,1705373446019,-252.96893256,0.00022165,2]
[311744200,1705373446032,-247.03106744,0.00022165,2]
[311744201,1705373446042,-645.52,0.00022165,2]
[311744202,1705373446051,-0.1550691,0.00022165,2]
[311744203,1705373446077,-550.66084252,0.00022165,2]
[311744204,1705373446263,-480.22137853,0.00022164,2]
[311744205,1705373446276,-19.77862147,0.00022164,2]
[311744206,1705373446286,-47.05408838,0.00022165,2]
[311744207,1705373446295,-500.0,0.00022165,2]
[311744208,1705373446305,-500.0,0.00022165,2]
[311744209,1705373446315,-500.0,0.00022165,2]
[311744210,1705373446325,-1037.3,0.00022165,2]
[311744211,1705373446334,-500.0,0.00022165,2]
[311744212,1705373446343,-495.16881338,0.00022165,2]
[311744213,1705373446356,-234.04118662,0.00022165,2]
[311744214,1705373446365,-156.57390291,0.00022165,2]
[311744215,1705373446398,-318.62652592,0.00022165,2]
[311744216,1705373446410,-24.79957117,0.00022165,2]
[311744217,1705373446420,-500.0,0.00022165,5]
[311744218,1705373446429,-475.20042883,0.00022165,2]
[311744219,1705373451307,477.68,0.00021402,2]
[311744220,1705373475932,1216.08138459,0.00021596,2]
[311744221,1705373476237,1216.08138459,0.0002185,2]
[311744226,1705373512246,7013.0644,0.00022064,2]
[311744227,1705373518993,165.57781639,0.00022061,2]
[311744228,1705373527300,165.57781634,0.00022063,2]
[311744229,1705373528976,165.57781634,0.00022065,2]
[311744230,1705373534052,165.57781634,0.00022067,2]
[311744231,1705373538981,165.57781634,0.00022068,2]
[311744232,1705373540072,150.39,0.00021475,2]
[311744233,1705373540307,150.39,0.00021545,2]
[311744234,1705373543990,165.57781634,0.0002207,2]
[311744235,1705373545656,150.39,0.00021615,2]
[311744236,1705373545991,150.39,0.00021685,2]
[311744237,1705373546277,150.39,0.00021755,2]
[311744238,1705373547142,150.39,0.00021825,2]
[311744239,1705373547224,150.39,0.00021895,2]
[311744240,1705373547514,150.39,0.00021965,2]
[311744241,1705373547615,150.39,0.00022035,2]
[311744242,1705373548754,382.2464333,0.00022074,2]
[311744243,1705373548972,165.57781634,0.00022072,2]
[311744244,1705373554000,165.57781634,0.00022074,2]
[311744245,1705373554466,196.99,0.00021286,2]
[311744246,1705373554878,196.99,0.00021398,2]
[311744247,1705373555749,196.99,0.0002151,2]
[311744248,1705373555974,196.99,0.00021622,2]
[311744249,1705373556038,196.99,0.00021734,2]
[311744250,1705373556199,196.99,0.00021846,2]
[311744251,1705373556307,196.99,0.00021958,2]
[311744252,1705373556560,196.99,0.0002207,2]
[311744254,1705373570290,603.0894,0.00022064,2]
[311744255,1705373572272,250.0,0.00022074,2]
[311744256,1705373578190,1570.9433,0.00022065,2]
[311744257,1705373592235,377.13826671,0.00022065,2]
[311744258,1705373597826,800.0,0.00022,2]
[311744259,1705373618415,150.0,0.0002203,2]
[311744260,1705373618457,150.0,0.00021975,2]
[311744261,1705373618520,150.0,0.00022093,2]
[311744262,1705373618577,300.0,0.00021965,2]
[311744263,1705373618610,150.0,0.00021928,2]
[311744266,1705373668480,289.5,0.0001931,2]
[311744267,1705373668734,289.5,0.00021574,2]
[311744269,1705373683008,185.47617335,0.00022072,2]
[311744270,1705373687640,254.83095554,0.00022074,2]
[311744271,1705373689466,293.8,0.00021213,2]
[311744272,1705373695230,250.0,0.00022074,2]
[311744273,1705373701596,150.0,0.00022043,2]
[311744274,1705373701649,150.0,0.00022044,2]
[311744275,1705373701698,179.1174937,0.0002204,2]
[311744276,1705373702538,377.1382667,0.00022064,2]
[311744280,1705373726424,250.0,0.00021918,2]
[311744282,1705373737919,1500.0,0.00021935,2]
[311744283,1705373737974,1500.0,0.00021973,2]
[311744284,1705373738030,1500.0,0.00022065,2]
[311744285,1705373738083,1500.0,0.00021938,2]
[311744286,1705373738134,1500.0,0.00021948,2]
[311744287,1705373738241,300.0,0.00022072,2]